Departmental Family,Entity,Transaction Reference ,Payment Date ,Account Name,Expense Area,Description,Description,Base Amount
BIS,NMRO,NMO 008,14/08/2015,Travel & Subsistence,Certification Services ,A2B Radio Cars,Taxi for staff,34.80
BIS,NMRO,5642,14/08/2015,Website Maintenance ,Enforcement ,ActiveIS Limited,RoHS website hosting ,298.80
BIS,NMRO,5642,14/08/2015,Website Maintenance ,Corporate Services ,ActiveIS Limited,NMRO website hosting ,720.00
BIS,NMRO,28221550,05/06/2015,Building Advisors,Estates ,AECOM Prof Services LLP,Project management services ,"-11,250.00"
BIS,NMRO,28221558,05/06/2015,Building Advisors,Estates ,AECOM Prof Services LLP,Cost management services ,"-7,500.00"
BIS,NMRO,90440805,21/08/2015,Hospitality,Utilities ,Amey Community Ltd,Catering for meeting ,99.58
BIS,NMRO,90440805,21/08/2015,Hospitality,Certification Services ,Amey Community Ltd,Catering for meeting ,107.46
BIS,NMRO,90442926,14/08/2015,Building Maintenance,Corporate Services ,Amey Community Ltd,Building maintenance,192.11
BIS,NMRO,90440805,21/08/2015,Hospitality,Regulation,Amey Community Ltd,Catering for meeting ,612.27
BIS,NMRO,30456072,21/08/2015,Stationery ,Enforcement ,Banner Business Services Ltd,Stationery,9.08
BIS,NMRO,30448844,21/08/2015,Stationery ,Corporate Services ,Banner Business Services Ltd,Stationery,53.68
BIS,NMRO,30416043,07/08/2015,Stationery ,Corporate Services ,Banner Business Services Ltd,Stationery,176.57
BIS,NMRO,30301989,07/08/2015,Hire of Agency Staff,Certification Services ,Brook Street (UK) Ltd,Temporary staff,58.29
BIS,NMRO,30301989,07/08/2015,Hire of Agency Staff,Certification Services ,Brook Street (UK) Ltd,Temporary staff,58.30
BIS,NMRO,30313188,14/08/2015,Hire of Agency Staff,Certification Services ,Brook Street (UK) Ltd,Temporary staff,116.59
BIS,NMRO,30324242,21/08/2015,Hire of Agency Staff,Certification Services ,Brook Street (UK) Ltd,Temporary staff,116.59
BIS,NMRO,30191521,21/08/2015,Hire of Agency Staff,Enforcement ,Brook Street (UK) Ltd,Temporary staff,260.28
BIS,NMRO,30270364,21/08/2015,Hire of Agency Staff,Enforcement ,Brook Street (UK) Ltd,Temporary staff,260.28
BIS,NMRO,30105779,21/08/2015,Hire of Agency Staff,Enforcement ,Brook Street (UK) Ltd,Temporary staff,268.20
BIS,NMRO,30142251,21/08/2015,Hire of Agency Staff,Enforcement ,Brook Street (UK) Ltd,Temporary staff,381.74
BIS,NMRO,30166629,21/08/2015,Hire of Agency Staff,Enforcement ,Brook Street (UK) Ltd,Temporary staff,390.42
BIS,NMRO,30169986,07/08/2015,Hire of Agency Staff,Utilities ,Brook Street (UK) Ltd,Temporary staff,392.12
BIS,NMRO,30117880,21/08/2015,Hire of Agency Staff,Enforcement ,Brook Street (UK) Ltd,Temporary staff,520.56
BIS,NMRO,30203176,21/08/2015,Hire of Agency Staff,Enforcement ,Brook Street (UK) Ltd,Temporary staff,520.56
BIS,NMRO,30226898,21/08/2015,Hire of Agency Staff,Enforcement ,Brook Street (UK) Ltd,Temporary staff,520.56
BIS,NMRO,30251790,21/08/2015,Hire of Agency Staff,Enforcement ,Brook Street (UK) Ltd,Temporary staff,528.48
BIS,NMRO,30274704,21/08/2015,Hire of Agency Staff,Enforcement ,Brook Street (UK) Ltd,Temporary staff,616.00
BIS,NMRO,30130330,21/08/2015,Hire of Agency Staff,Enforcement ,Brook Street (UK) Ltd,Temporary staff,642.02
BIS,NMRO,30154328,21/08/2015,Hire of Agency Staff,Enforcement ,Brook Street (UK) Ltd,Temporary staff,650.70
BIS,NMRO,30215039,21/08/2015,Hire of Agency Staff,Enforcement ,Brook Street (UK) Ltd,Temporary staff,650.70
BIS,NMRO,30239152,21/08/2015,Hire of Agency Staff,Enforcement ,Brook Street (UK) Ltd,Temporary staff,650.70
BIS,NMRO,30263212,21/08/2015,Hire of Agency Staff,Enforcement ,Brook Street (UK) Ltd,Temporary staff,650.70
BIS,NMRO,30178633,21/08/2015,Hire of Agency Staff,Enforcement ,Brook Street (UK) Ltd,Temporary staff,663.71
BIS,NMRO,X78350,28/08/2015,Training ,Enforcement ,Capita Business Services Ltd,Training,133.00
BIS,NMRO,X77299,07/08/2015,Training ,Enforcement ,Capita Business Services Ltd,Training,250.00
BIS,NMRO,10332496,21/08/2015,Gas,Corporate Services ,Corona Energy Limited,Gas supply to NMRO,"1,278.10"
BIS,NMRO,610,14/08/2015,Contractors Costs ,Certification Services ,D&J Services Limited,Auditing services ,482.49
BIS,NMRO,275/26978S,07/08/2015,Calibrating Equipment ,Certification Services ,Daco Scientific Limited,Equipment calibration,230.00
BIS,NMRO,AVI2835323,07/08/2015,Courier Services ,Certification Services ,Dhl International (Uk) Ltd,Courier services ,18.91
BIS,NMRO,AVI2855807,14/08/2015,Courier Services ,Certification Services ,Dhl International (Uk) Ltd,Courier services ,22.72
BIS,NMRO,HSC8877331,21/08/2015,Courier Services ,Enforcement ,Dhl International (Uk) Ltd,Courier services ,44.48
BIS,NMRO,1492944,21/08/2015,Recruitment Advertising ,Corporate Services ,Disclosure Scotland,Disclosure for new staff,25.00
BIS,NMRO,2015-072,21/08/2015,Seminars & Conferences ,Enforcement ,Electrical Safety First,ROHS safety conference ,102.00
BIS,NMRO,33409,14/08/2015,Calibrating Equipment ,Certification Services ,Electronic Test & Calibration,Equipment calibration,384.40
BIS,NMRO,2356791256,07/08/2015,Car Hire & Leasing ,Certification Services ,Hertz UK Limited,Car hire ,-14.18
BIS,NMRO,2356894307,28/08/2015,Car Hire & Leasing ,Enforcement ,Hertz UK Limited,Car hire ,42.84
BIS,NMRO,2356847731,21/08/2015,Car Hire & Leasing ,Enforcement ,Hertz UK Limited,Car hire ,44.94
BIS,NMRO,2356017286,14/08/2015,Car Hire & Leasing ,Enforcement ,Hertz UK Limited,Car hire ,68.94
BIS,NMRO,2356817668,14/08/2015,Car Hire & Leasing ,Enforcement ,Hertz UK Limited,Car hire ,77.88
BIS,NMRO,235678524,07/08/2015,Car Hire & Leasing ,Enforcement ,Hertz UK Limited,Car hire ,81.84
BIS,NMRO,2356791256,07/08/2015,Car Hire & Leasing ,Certification Services ,Hertz UK Limited,Car hire ,85.08
BIS,NMRO,2356839457,28/08/2015,Car Hire & Leasing ,Certification Services ,Hertz UK Limited,Car hire ,97.92
BIS,NMRO,2356882118,28/08/2015,Car Hire & Leasing ,Utilities ,Hertz UK Limited,Car hire ,101.88
BIS,NMRO,2356822229,21/08/2015,Car Hire & Leasing ,Enforcement ,Hertz UK Limited,Car hire ,109.45
BIS,NMRO,6009965-02,07/08/2015,Car Hire & Leasing ,Enforcement ,Hertz UK Limited,Car hire ,616.13
BIS,NMRO,71496,14/08/2015,Conferences & Exhibitions ,Enforcement ,ITSA Limited,Exhibition stand deposit,120.00
BIS,NMRO,71497,07/08/2015,Conferences & Exhibitions ,Regulation,ITSA Limited,Hire of conference facilities ,"1,173.60"
BIS,NMRO,329754,21/08/2015,Hospitality,Corporate Services ,Kent & Sussex Vending,Coffee machine supplies ,299.26
BIS,NMRO,051,07/08/2015,Contractors Costs ,Certification Services ,Legal Metrology Ltd,Provision of training services ,287.90
BIS,NMRO,049,14/08/2015,Contractors Costs ,Certification Services ,Legal Metrology Ltd,Auditing services ,526.80
BIS,NMRO,050,14/08/2015,Contractors Costs ,Certification Services ,Legal Metrology Ltd,Auditing services ,729.60
BIS,NMRO,046,14/08/2015,Contractors Costs ,Certification Services ,Legal Metrology Ltd,Auditing services ,760.17
BIS,NMRO,048,14/08/2015,Contractors Costs ,Certification Services ,Legal Metrology Ltd,Auditing services ,949.04
BIS,NMRO,047,14/08/2015,Contractors Costs ,Certification Services ,Legal Metrology Ltd,Auditing services ,"1,042.05"
BIS,NMRO,15021,14/08/2015,Contractors Costs ,Certification Services ,LegMetConsult,Auditing services ,466.35
BIS,NMRO,15023,21/08/2015,Contractors Costs ,Certification Services ,LegMetConsult,Auditing services ,488.25
BIS,NMRO,15019,07/08/2015,Contractors Costs ,Certification Services ,LegMetConsult,Auditing services ,575.40
BIS,NMRO,44467,21/08/2015,Laboratory Testing,Enforcement ,LIA Laboratories Ltd,Sample testing ,"1,579.04"
BIS,NMRO,1336,14/08/2015,Contractors Costs ,Certification Services ,LMCS,Auditing services ,495.00
BIS,NMRO,131533,21/08/2015,Telecommunications ,Corporate Services ,Maintel Voice & Data Limited,Telephone calls and line rental,"1,670.12"
BIS,NMRO,56207,21/08/2015,Electricity,Corporate Services ,NPL Management Ltd,Electricity charges,"10,349.26"
BIS,NMRO,TS/R4XM5Q,21/08/2015,Contractors Costs ,Certification Services ,Omega,Auditor travel costs ,70.49
BIS,NMRO,RL/R4XM5Q,21/08/2015,Contractors Costs ,Certification Services ,Omega,Auditor travel costs ,"1,365.36"
BIS,NMRO,2015/3748,04/08/2015,OIML Certificate Registration Fees,Certification Services ,Organisation Internationale de Metrologie Legale ,OIML Certificate Registration Fees,987.14
BIS,NMRO,280218509,21/08/2015,Scientific Equipment ,Certification Services ,R S Components Limited,Equipment calibration,27.96
BIS,NMRO,280189578,21/08/2015,Scientific Equipment ,Certification Services ,R S Components Limited,Equipment calibration,37.60
BIS,NMRO,SJI016398,07/08/2015,IT software licences and maintenance ,Corporate Services ,Real Asset Management Plc,Annual software support ,"3,444.00"
BIS,NMRO,0165,07/08/2015,Website Maintenance ,Certification Services ,Russell IT Solutions Ltd,Monthly hosting of new system,-15.00
BIS,NMRO,0165,07/08/2015,Website Maintenance ,Certification Services ,Russell IT Solutions Ltd,Monthly hosting of new system,90.00
BIS,NMRO,GBE194819,14/08/2015,Laboratory Testing,Utilities ,SGS United Kingdom Ltd,Meter testing ,"27,204.94"
BIS,NMRO,07428244,14/08/2015,Courier Services ,Certification Services ,TNT International,Courier services ,22.50
BIS,NMRO,UK01032260,28/08/2015,UKAS Accreditation Fees,Certification Services ,U.K.Accreditation Service,UKAS surveillance assessment ,209.00
BIS,NMRO,UK01032261,28/08/2015,UKAS Accreditation Fees,Certification Services ,U.K.Accreditation Service,UKAS surveillance assessment ,209.00
BIS,NMRO,UK01032260,28/08/2015,UKAS Accreditation Fees,Certification Services ,U.K.Accreditation Service,UKAS surveillance assessment ,250.80
BIS,NMRO,UK01032123,21/08/2015,UKAS Accreditation Fees,Certification Services ,U.K.Accreditation Service,UKAS surveillance assessment ,"1,238.00"
BIS,NMRO,25973,28/08/2015,Stationery ,Corporate Services ,Viking Direct,Stationery,170.30
BIS,NMRO,76754982,07/08/2015,Telecommunications ,Corporate Services ,VODAFONE LTD,Mobile phone charges ,546.25
BIS,NMRO,77121147,21/08/2015,Telecommunications ,Corporate Services ,VODAFONE LTD,Mobile phone charges ,577.95
BIS,NMRO,MO15070002,14/08/2015,Marketing ,Regulation,Williams Lea Publishing,Business cards,38.81
BIS,NMRO,MO15070003,21/08/2015,Marketing ,Utilities ,Williams Lea Publishing,Business cards  ,75.74
BIS,NMRO,MO15060007,07/08/2015,Marketing ,Enforcement ,Williams Lea Publishing,Business cards template ,97.95
BIS,NMRO,MO15060007,07/08/2015,Marketing ,Enforcement ,Williams Lea Publishing,Business cards template ,97.96
BIS,NMRO,MO15060007,07/08/2015,Marketing ,Enforcement ,Williams Lea Publishing,Business cards template ,97.96
BIS,NMRO,MO15060007,07/08/2015,Marketing ,Enforcement ,Williams Lea Publishing,Business cards template ,97.96
BIS,NMRO,MO15060007,07/08/2015,Marketing ,Enforcement ,Williams Lea Publishing,Business cards template ,97.96
BIS,NMRO,MO15070004,07/08/2015,Conferences & Exhibitions ,Enforcement ,Williams Lea Publishing,Exhibition stand for NMRO,114.33
BIS,NMRO,MO15070004,07/08/2015,Conferences & Exhibitions ,Enforcement ,Williams Lea Publishing,Exhibition stand for NMRO,114.35
BIS,NMRO,MO15070004,07/08/2015,Conferences & Exhibitions ,Enforcement ,Williams Lea Publishing,Exhibition stand for NMRO,114.35
BIS,NMRO,MO15070004,07/08/2015,Conferences & Exhibitions ,Enforcement ,Williams Lea Publishing,Exhibition stand for NMRO,114.35
BIS,NMRO,MO15060003,07/08/2015,Publications ,Enforcement ,Williams Lea Publishing,RoHS leaflets ,168.63
BIS,NMRO,MO15060007,07/08/2015,Marketing ,Enforcement ,Williams Lea Publishing,Business cards template ,195.91
BIS,NMRO,MO15070004,07/08/2015,Conferences & Exhibitions ,Enforcement ,Williams Lea Publishing,Exhibition stand for NMRO,228.68
BIS,NMRO,1508010001,21/08/2015,Agency Literature,Corporate Services ,Williams Lea Publishing,Design and print of 2015 annual report and accounts,"4,031.46"
BIS,NMRO,XM11273,21/08/2015,Hire of office equipment ,Corporate Services ,XMA Limited,Quarterly printer charges ,805.42
BIS,NMRO,XPS00026,21/08/2015,Reprographic Services ,Corporate Services ,XMA Limited,Printer ink usage,"1,444.56"
